fUST/lending_fUST_20240726
["ID","MTS","AMOUNT","RATE_DAILY","PERIOD"]
[333185575,1721927442604,-500.0,0.00013698,2]
[333185577,1721927442613,-500.0,0.00013698,2]
[333185579,1721927442623,-500.0,0.00013698,2]
[333185581,1721927442633,-503.71708603,0.00013698,2]
[333185583,1721927442643,-502.11194935,0.00013698,2]
[333185585,1721927442653,-2237.01,0.00013698,2]
[333185587,1721927442664,-500.0,0.00013698,2]
[333185589,1721927442675,-500.0,0.00013698,2]
[333185591,1721927442685,-506.55,0.00013698,2]
[333185593,1721927442696,-500.0,0.00013698,2]
[333185595,1721927442706,-1062.99,0.00013698,2]
[333185597,1721927442715,-568.13,0.00013698,2]
[333185599,1721927442725,-500.0,0.00013698,2]
[333185601,1721927442735,-500.0,0.00013698,2]
[333185603,1721927442746,-500.0,0.00013698,2]
[333185605,1721927442756,-3505.0,0.00013698,2]
[333185607,1721927442765,-500.0,0.00013698,2]
[333185609,1721927442776,-2257.7,0.00013698,2]
[333185611,1721927442786,-500.0,0.00013698,2]
[333185613,1721927442796,-500.0,0.00013698,2]
[333185615,1721927442805,-500.0,0.00013698,2]
[333185617,1721927442816,-500.0,0.00013698,2]
[333185619,1721927442827,-500.0,0.00013698,2]
[333185621,1721927442840,-1997.07,0.00013698,2]
[333185623,1721927442850,-500.0,0.00013698,2]
[333185625,1721927442860,-1746.36,0.00013698,2]
[333185627,1721927442870,-500.0,0.00013698,2]
[333185629,1721927442880,-500.0,0.00013698,2]
[333185631,1721927442890,-3292.49,0.00013698,2]
[333185633,1721927442899,-500.0,0.00013698,2]
[333185635,1721927442909,-503.28316287,0.00013698,2]
[333185638,1721927442919,-500.0,0.00013698,2]
[333185640,1721927442928,-500.0,0.00013698,2]
[333185642,1721927442938,-500.0,0.00013698,2]
[333185644,1721927442947,-824.18,0.00013698,2]
[333185646,1721927442957,-500.0,0.00013698,2]
[333185648,1721927442966,-884.95,0.00013698,2]
[333185650,1721927442976,-953.88,0.00013698,2]
[333185652,1721927442986,-500.0,0.00013698,2]
[333185654,1721927442996,-500.0,0.00013698,2]
[333185656,1721927443006,-500.0,0.00013698,2]
[333185658,1721927443015,-500.0,0.00013698,2]
[333185660,1721927443024,-506.01164318,0.00013698,2]
[333185662,1721927443034,-11909.14,0.00013698,2]
[333185664,1721927443043,-1131.0,0.00013698,2]
[333185666,1721927443053,-500.0,0.00013698,2]
[333185668,1721927443062,-500.0,0.00013698,2]
[333185670,1721927443072,-500.0,0.00013698,2]
[333185673,1721927443082,-500.0,0.00013698,2]
[333185675,1721927443091,-500.0,0.00013698,2]
[333185679,1721927443101,-1120.68,0.00013698,2]
[333185681,1721927443111,-620.33,0.00013698,2]
[333185684,1721927443120,-5038.56,0.00013698,2]
[333185687,1721927443130,-500.0,0.00013698,2]
[333185690,1721927443140,-500.0,0.00013698,2]
[333185695,1721927443149,-500.0,0.00013698,2]
[333185698,1721927443159,-500.0,0.00013698,2]
[333185701,1721927443168,-500.0,0.00013698,2]
[333185704,1721927443179,-1928.47,0.00013698,2]
[333185707,1721927443189,-500.0,0.00013698,2]
[333185710,1721927443198,-500.0,0.00013698,2]
[333185713,1721927443208,-500.0,0.00013698,2]
[333185716,1721927443218,-2201.11,0.00013698,2]
[333185719,1721927443228,-432.67944057,0.00013698,2]
[333185722,1721927443238,-500.0,0.00013698,2]
[333185725,1721927443249,-1011.6,0.00013698,2]
[333185727,1721927443259,-500.0,0.00013698,2]
[333185730,1721927443269,-576.95,0.00013698,2]
[333185732,1721927443279,-9992.31,0.00013698,2]
[333185734,1721927443289,-500.0,0.00013698,2]
[333185735,1721927443298,-500.0,0.00013698,2]
[333185737,1721927443308,-500.0,0.00013698,2]
[333185739,1721927443318,-1551.57,0.00013698,2]
[333185741,1721927443328,-1578.49,0.00013698,2]
[333185743,1721927443337,-859.56,0.00013698,2]
[333185745,1721927443347,-500.0,0.00013698,2]
[333185747,1721927443357,-500.0,0.00013698,2]
[333185749,1721927443366,-500.0,0.00013698,2]
[333185750,1721927443376,-504.29706706,0.00013698,2]
[333185751,1721927443385,-500.0,0.00013698,2]
[333185752,1721927443395,-3743.12,0.00013698,2]
[333185753,1721927443404,-417.77535033,0.00013698,2]
[333185754,1721927443414,-500.0,0.00013698,2]
[333185755,1721927443424,-500.0,0.00013698,2]
[333185756,1721927443434,-500.0,0.00013698,2]
[333185757,1721927443444,-1197.21,0.00013698,2]
[333185758,1721927443453,-945.86,0.00013698,2]
[333185759,1721927443462,-500.0,0.00013698,2]
[333185760,1721927443472,-2016.41,0.00013698,2]
[333185761,1721927443481,-500.0,0.00013698,2]
[333185762,1721927443491,-500.0,0.00013698,2]
[333185763,1721927443503,-972.43,0.00013698,2]
[333185764,1721927443513,-500.0,0.00013698,2]
[333185766,1721927443523,-500.0,0.00013698,2]
[333185767,1721927443533,-500.0,0.00013698,2]
[333185768,1721927443543,-1931.27,0.00013698,2]
[333185769,1721927443553,-500.0,0.00013698,2]
[333185770,1721927443563,-500.0,0.00013698,2]
[333185771,1721927443573,-500.0,0.00013698,2]
[333185772,1721927443583,-500.0,0.00013698,2]
[333185773,1721927443593,-500.0,0.00013698,2]
[333185774,1721927443602,-500.0,0.00013698,2]
[333185775,1721927443612,-657.54,0.00013698,2]
[333185776,1721927443622,-500.0,0.00013698,2]
[333185777,1721927443632,-500.0,0.00013698,2]
[333185778,1721927443641,-1820.02,0.00013698,2]
[333185779,1721927443652,-540.23,0.00013698,2]
[333185780,1721927443661,-500.0,0.00013698,2]
[333185781,1721927443671,-1178.43,0.00013698,2]
[333185782,1721927443681,-500.0,0.00013698,2]
[333185783,1721927443692,-1510.81,0.00013698,2]
[333185784,1721927443702,-5851.38,0.00013698,2]
[333185785,1721927443711,-1621.43,0.00013698,2]
[333185786,1721927443721,-7992.54,0.00013698,2]
[333185787,1721927443730,-1075.5,0.00013698,2]
[333185789,1721927443740,-553.91,0.00013698,2]
[333185791,1721927443751,-935.24,0.00013698,2]
[333185793,1721927443761,-501.49133993,0.00013698,2]
[333185794,1721927443770,-500.0,0.00013698,2]
[333185795,1721927443780,-591.05,0.00013698,2]
[333185796,1721927443789,-1762.51,0.00013698,2]
[333185797,1721927443799,-500.0,0.00013698,2]
[333185798,1721927443943,-500.0,0.00013698,2]
[333185799,1721927443953,-500.0,0.00013698,2]
[333185800,1721927443962,-503.42817,0.00013698,2]
[333185801,1721927443971,-151.0,0.00013698,2]
[333185802,1721927443980,-500.0,0.00013698,2]
[333185803,1721927443990,-500.0,0.00013698,2]
[333185804,1721927444000,-500.0,0.00013698,2]
[333185805,1721927444012,-500.0,0.00013698,2]
[333185806,1721927444022,-500.0,0.00013698,2]
[333185807,1721927444031,-3113.68,0.00013698,2]
[333185808,1721927444041,-1893.92,0.00013698,2]
[333185809,1721927444053,-518.04,0.00013698,2]
[333185810,1721927444065,-151.0,0.00013698,2]
[333185811,1721927444078,-581.30112682,0.00013698,2]
[333185812,1721927444089,-500.0,0.00013698,2]
[333185813,1721927444098,-197.23084728,0.00013698,2]
[333185814,1721927444108,-500.0,0.00013698,2]
[333185815,1721927444118,-795.8231145,0.00013698,2]
[333185816,1721927444128,-235.84475268,0.00013698,2]
[333185817,1721927444138,-500.0,0.00013698,2]
[333185818,1721927444148,-795.8231145,0.00013698,2]
[333185819,1721927444159,-500.0,0.00013698,2]
[333185820,1721927444171,-500.0,0.00013698,2]
[333185821,1721927444181,-795.8231145,0.00013698,2]
[333185822,1721927444192,-795.8231145,0.00013698,2]
[333185823,1721927444201,-500.0,0.00013698,2]
[333185824,1721927444211,-500.0,0.00013698,2]
[333185825,1721927444223,-795.8231145,0.00013698,2]
[333185826,1721927444233,-795.8231145,0.00013698,2]
[333185827,1721927444245,-500.0,0.00013698,2]
[333185828,1721927444258,-500.0,0.00013698,2]
[333185829,1721927444269,-795.8231145,0.00013698,2]
[333185830,1721927444282,-500.0,0.00013698,2]
[333185831,1721927444292,-795.8231145,0.00013698,2]
[333185832,1721927444303,-500.0,0.00013698,2]
[333185833,1721927444314,-500.0,0.00013698,2]
[333185834,1721927444326,-795.8231145,0.00013698,2]
[333185835,1721927444338,-795.8231145,0.00013698,2]
[333185836,1721927444350,-815.62,0.00013698,2]
[333185837,1721927444360,-500.0,0.00013698,2]
[333185838,1721927444373,-795.8231145,0.00013698,2]
[333185839,1721927444384,-795.8231145,0.00013698,2]
[333185841,1721927444394,-795.8231145,0.00013698,2]
[333185843,1721927444405,-784.87,0.00013698,2]
[333185845,1721927444415,-188.66237129,0.00013698,2]
[333185847,1721927444425,-500.0,0.00013698,2]
[333185849,1721927444434,-626.86520636,0.00013698,2]
[333185851,1721927444445,-500.0,0.00013698,2]
[333185853,1721927444455,-500.0,0.00013698,2]
[333185855,1721927444465,-445.40601995,0.00013698,2]
[333185857,1721927444476,-500.0,0.00013698,2]
[333185860,1721927444486,-550.44982241,0.00013698,2]
[333185862,1721927444498,-500.0,0.00013698,2]
[333185864,1721927444508,-500.0,0.00013698,2]
[333185866,1721927444520,-1050.01,0.00013698,2]
[333185868,1721927444532,-500.0,0.00013698,2]
[333185870,1721927444542,-500.0,0.00013698,2]
[333185873,1721927444553,-500.0,0.00013698,2]
[333185875,1721927444564,-500.0,0.00013698,2]
[333185877,1721927444576,-500.0,0.00013698,2]
[333185879,1721927444586,-500.0,0.00013698,2]
[333185881,1721927444596,-500.0,0.00013698,2]
[333185883,1721927444607,-500.0,0.00013698,2]
[333185885,1721927444616,-500.0,0.00013698,2]
[333185887,1721927444626,-500.0,0.00013698,2]
[333185889,1721927444636,-198.91142312,0.00013698,2]
[333185891,1721927444646,-500.0,0.00013698,2]
[333185894,1721927444657,-500.0,0.00013698,2]
[333185896,1721927444668,-500.0,0.00013698,2]
[333185898,1721927444677,-500.0,0.00013698,2]
[333185900,1721927444689,-500.0,0.00013698,2]
[333185902,1721927444698,-500.0,0.00013698,2]
[333185904,1721927444709,-500.0,0.00013698,2]
[333185906,1721927444719,-500.0,0.00013698,2]
[333185908,1721927444730,-500.0,0.00013698,2]
[333185911,1721927444742,-500.0,0.00013698,2]
[333185913,1721927444754,-500.0,0.00013698,2]
[333185915,1721927444765,-500.0,0.00013698,2]
[333185917,1721927444776,-500.0,0.00013698,2]
[333185919,1721927444787,-500.0,0.00013698,2]
[333185921,1721927444797,-500.0,0.00013698,2]
[333185923,1721927444808,-500.0,0.00013698,2]
[333185925,1721927444817,-3309.2147098,0.00013699,2]
[333185927,1721927444829,-2892.565545,0.00013699,2]
[333185929,1721927444840,-3000.0,0.00013699,2]
[333185931,1721927444850,-3626.84,0.00013765,2]
[333185933,1721927444859,-5306.88604622,0.00013798,2]
[333185935,1721927444870,-151.0,0.00013916,2]
[333185937,1721927444880,-1627.268483,0.00013916,2]
[333185939,1721927444889,-151.0,0.00013916,2]
[333185941,1721927444899,-1627.268483,0.00013916,2]
[333185943,1721927444909,-151.0,0.00013916,2]
[333185945,1721927444919,-1110.010626,0.00013916,2]
[333185947,1721927444929,-1110.010626,0.00013916,2]
[333185949,1721927444939,-250.0,0.00013917,2]
[333185951,1721927444948,-150.0,0.00013917,2]
[333185953,1721927444957,-505.0,0.00013917,2]
[333185955,1721927444966,-1409.0,0.00013917,2]
[333185957,1721927444976,-151.0,0.00013951,2]
[333185959,1721927444985,-11545.5316835,0.00013961,2]
[333185961,1721927444996,-3626.84,0.00013961,2]
[333185963,1721927445007,-3626.84,0.00013961,2]
[333185965,1721927445016,-3626.84,0.00013961,2]
[333185967,1721927445025,-166.428033,0.00013962,2]
[333185969,1721927445034,-166.428033,0.00013962,2]
[333185970,1721927445044,-151.0,0.00013962,2]
[333185972,1721927445053,-151.0,0.00013962,2]
[333185975,1721927445064,-151.0,0.00013962,2]
[333185976,1721927445074,-80818.7217843,0.00013962,2]
[333185978,1721927445083,-3626.84,0.00013971,2]
[333185980,1721927445093,-3626.84,0.00013971,2]
[333185983,1721927445103,-3626.84,0.00013971,2]
[333185985,1721927445112,-3626.84,0.00013971,2]
[333185987,1721927445122,-3626.84,0.00013971,2]
[333185989,1721927445132,-3626.84,0.00013971,2]
[333185991,1721927445141,-3626.84,0.00013971,2]
[333185993,1721927445150,-3626.88140074,0.00013971,2]
[333185995,1721927445160,-12854.40544478,0.00013972,5]
[333185997,1721927445170,-151.0,0.00013972,2]
[333185999,1721927445179,-151.0,0.00013972,2]
[333186001,1721927445189,-151.0,0.00013972,2]
[333186003,1721927445198,-211.640192,0.00013972,2]
[333186005,1721927445207,-185.25109467,0.00013972,2]
[333186007,1721927445218,-447.86449664,0.00013972,2]
[333186009,1721927445227,-151.0,0.00013972,2]
[333186011,1721927445236,-151.0,0.00013972,2]
[333186013,1721927445247,-151.0,0.00013972,2]
[333186015,1721927445257,-16018.3201662,0.00013972,2]
[333186017,1721927445267,-154.80649189,0.00013972,2]
[333186019,1721927445276,-647.97,0.00013972,2]
[333186021,1721927445285,-500.0,0.00013972,2]
[333186023,1721927445294,-500.0,0.00013972,2]
[333186025,1721927445304,-500.0,0.00013972,2]
[333186027,1721927445314,-500.0,0.00013972,2]
[333186029,1721927445323,-500.0,0.00013972,2]
[333186031,1721927445332,-500.0,0.00013972,2]
[333186033,1721927445342,-500.0,0.00013972,2]
[333186035,1721927445352,-500.0,0.00013972,2]
[333186037,1721927445361,-500.0,0.00013972,2]
[333186038,1721927445371,-500.0,0.00013972,2]
[333186039,1721927445380,-500.0,0.00013972,2]
[333186040,1721927445390,-159.2254058,0.00013972,2]
[333186042,1721927445400,-634.83,0.00013972,2]
[333186044,1721927445409,-500.0,0.00013972,2]
[333186046,1721927445418,-500.0,0.00013972,2]
[333186048,1721927445428,-500.0,0.00013972,2]
[333186049,1721927445437,-500.0,0.00013972,2]
[333186050,1721927445446,-500.0,0.00013972,2]
[333186051,1721927445456,-500.0,0.00013972,2]
[333186052,1721927445465,-500.0,0.00013972,2]
[333186054,1721927445474,-500.0,0.00013972,2]
[333186056,1721927445483,-500.0,0.00013972,2]
[333186058,1721927445492,-500.0,0.00013972,2]
[333186059,1721927445502,-500.0,0.00013972,2]
[333186060,1721927445512,-515.91565031,0.00013972,2]
[333186062,1721927445521,-500.0,0.00013972,2]
[333186065,1721927445531,-500.0,0.00013972,2]
[333186066,1721927445540,-440.48102587,0.00013972,2]
[333186068,1721927445549,-500.0,0.00013972,2]
[333186070,1721927445558,-164.92704275,0.00013972,2]
[333186072,1721927445567,-500.0,0.00013972,2]
[333186074,1721927445577,-245.77726075,0.00013972,2]
[333186076,1721927445586,-500.0,0.00013972,2]
[333186078,1721927445596,-500.0,0.00013972,2]
[333186079,1721927445605,-500.0,0.00013972,2]
[333186080,1721927445615,-500.0,0.00013972,2]
[333186081,1721927445625,-500.0,0.00013972,2]
[333186082,1721927445634,-502.92560103,0.00013972,2]
[333186083,1721927445643,-500.0,0.00013972,2]
[333186084,1721927445653,-500.0,0.00013972,2]
[333186085,1721927445662,-500.0,0.00013972,2]
[333186086,1721927445672,-566.77349896,0.00013972,2]
[333186087,1721927445681,-519.39971363,0.00013972,2]
[333186088,1721927445691,-500.0,0.00013972,2]
[333186089,1721927445700,-504.79590496,0.00013972,2]
[333186090,1721927445710,-500.0,0.00013972,2]
[333186091,1721927445719,-500.0,0.00013972,2]
[333186092,1721927445730,-500.0,0.00013972,2]
[333186093,1721927445740,-500.0,0.00013972,2]
[333186094,1721927445751,-500.0,0.00013972,2]
[333186095,1721927445760,-615.61278734,0.00013972,2]
[333186096,1721927445770,-500.0,0.00013972,2]
[333186097,1721927445780,-500.0,0.00013972,2]
[333186098,1721927445789,-500.0,0.00013972,2]
[333186099,1721927445799,-500.0,0.00013972,2]
[333186100,1721927445810,-500.0,0.00013972,2]
[333186101,1721927445820,-151.0,0.00013972,2]
[333186102,1721927445830,-500.0,0.00013972,2]
[333186103,1721927445842,-151.0,0.00013972,2]
[333186104,1721927445852,-514.68123155,0.00013972,2]
[333186105,1721927445861,-500.0,0.00013972,2]
[333186106,1721927445871,-500.0,0.00013972,2]
[333186107,1721927445881,-500.0,0.00013972,2]
[333186108,1721927445891,-500.0,0.00013972,2]
[333186109,1721927445900,-500.0,0.00013972,2]
[333186110,1721927445912,-500.0,0.00013972,2]
[333186111,1721927445921,-317.57143978,0.00013972,2]
[333186112,1721927445931,-500.0,0.00013972,2]
[333186113,1721927445940,-500.0,0.00013972,2]
[333186114,1721927445950,-655.73,0.00013972,2]
[333186115,1721927445960,-1429.57,0.00013972,2]
[333186116,1721927445969,-500.0,0.00013972,2]
[333186117,1721927445979,-500.0,0.00013972,2]
[333186118,1721927445988,-500.0,0.00013972,2]
[333186119,1721927445999,-500.0,0.00013972,2]
[333186120,1721927446008,-500.0,0.00013972,2]
[333186121,1721927446018,-719.83,0.00013972,2]
[333186122,1721927446027,-500.0,0.00013972,2]
[333186123,1721927446037,-500.0,0.00013972,2]
[333186124,1721927446046,-500.0,0.00013972,2]
[333186125,1721927446056,-500.0,0.00013972,2]
[333186126,1721927446066,-500.0,0.00013972,2]
[333186127,1721927446076,-502.2196872,0.00013972,2]
[333186128,1721927446085,-500.0,0.00013972,2]
[333186129,1721927446095,-500.0,0.00013972,2]
[333186131,1721927446104,-500.0,0.00013972,2]
[333186133,1721927446122,-500.0,0.00013972,2]
[333186135,1721927446131,-500.0,0.00013972,2]
[333186136,1721927446141,-500.0,0.00013972,2]
[333186137,1721927446151,-500.0,0.00013972,2]
[333186138,1721927446160,-500.0,0.00013972,2]
[333186139,1721927446170,-500.0,0.00013972,2]
[333186140,1721927446179,-233.69325146,0.00013972,2]
[333186141,1721927446188,-500.0,0.00013972,2]
[333186142,1721927446198,-166.428033,0.00013972,2]
[333186143,1721927446207,-166.428033,0.00013972,2]
[333186144,1721927446217,-500.0,0.00013972,2]
[333186145,1721927446227,-529.67477119,0.00013972,2]
[333186146,1721927446236,-166.428033,0.00013972,2]
[333186147,1721927446246,-166.428033,0.00013972,2]
[333186148,1721927446256,-1476.46,0.00013972,2]
[333186149,1721927446266,-500.0,0.00013972,2]
[333186150,1721927446276,-500.0,0.00013972,2]
[333186151,1721927446285,-503.32840779,0.00013972,2]
[333186152,1721927446295,-500.0,0.00013972,2]
[333186153,1721927446305,-500.0,0.00013972,2]
[333186154,1721927446314,-500.0,0.00013972,2]
[333186155,1721927446323,-500.0,0.00013972,2]
[333186156,1721927446333,-559.24,0.00013972,2]
[333186157,1721927446343,-500.0,0.00013972,2]
[333186158,1721927446352,-1040.51,0.00013972,2]
[333186159,1721927446363,-1128.01,0.00013972,2]
[333186160,1721927446372,-500.0,0.00013972,2]
[333186161,1721927446382,-500.0,0.00013972,2]
[333186162,1721927446392,-500.0,0.00013972,2]
[333186163,1721927446401,-500.0,0.00013972,2]
[333186164,1721927446411,-500.0,0.00013972,2]
[333186165,1721927446421,-500.0,0.00013972,2]
[333186166,1721927446431,-501.77585729,0.00013972,2]
[333186167,1721927446440,-500.0,0.00013972,2]
[333186168,1721927446449,-500.0,0.00013972,2]
[333186169,1721927446459,-2517.97,0.00013972,2]
[333186170,1721927446469,-1610.96,0.00013972,2]
[333186171,1721927446478,-500.0,0.00013972,2]
[333186172,1721927446488,-500.0,0.00013972,2]
[333186173,1721927446498,-580.11517769,0.00013972,2]
[333186174,1721927446508,-500.0,0.00013972,2]
[333186175,1721927446518,-500.0,0.00013972,2]
[333186177,1721927446528,-723.39,0.00013972,2]
[333186179,1721927446537,-500.0,0.00013972,2]
[333186180,1721927446547,-625.15,0.00013972,2]
[333186182,1721927446557,-500.0,0.00013972,2]
[333186184,1721927446567,-500.0,0.00013972,2]
[333186186,1721927446577,-500.0,0.00013972,2]
[333186188,1721927446587,-500.0,0.00013972,2]
[333186190,1721927446597,-720.51,0.00013972,2]
[333186192,1721927446607,-500.0,0.00013972,2]
[333186194,1721927446617,-500.0,0.00013972,2]
[333186195,1721927446626,-500.0,0.00013972,2]
[333186196,1721927446635,-833.44,0.00013972,2]
[333186197,1721927446645,-488.72897069,0.00013972,2]
[333186198,1721927446654,-500.0,0.00013972,2]
[333186199,1721927446663,-500.0,0.00013972,2]
[333186200,1721927446672,-500.0,0.00013972,2]
[333186201,1721927446682,-940.89,0.00013972,2]
[333186202,1721927446692,-500.0,0.00013972,2]
[333186203,1721927446701,-1409.93,0.00013972,2]
[333186204,1721927446711,-500.0,0.00013972,2]
[333186205,1721927446720,-500.0,0.00013972,2]
[333186206,1721927446730,-1590.58,0.00013972,2]
[333186207,1721927446741,-676.54,0.00013972,2]
[333186208,1721927446752,-511.04286735,0.00013972,2]
[333186209,1721927446763,-725.29,0.00013972,2]
[333186210,1721927446773,-500.0,0.00013972,2]
[333186211,1721927446785,-500.0,0.00013972,2]
[333186212,1721927446794,-500.0,0.00013972,2]
[333186213,1721927446804,-500.0,0.00013972,2]
[333186214,1721927446814,-753.55,0.00013972,2]
[333186215,1721927446824,-500.0,0.00013972,2]
[333186216,1721927446836,-151.0,0.00013972,2]
[333186217,1721927446846,-585.75,0.00013972,2]
[333186218,1721927446856,-151.0,0.00013972,2]
[333186219,1721927446865,-500.0,0.00013972,2]
[333186220,1721927447003,-663.52,0.00013972,2]
[333186221,1721927447014,-500.0,0.00013972,2]
[333186222,1721927447026,-1444.96,0.00013972,2]
[333186223,1721927447037,-1246.71,0.00013972,2]
[333186224,1721927447047,-500.0,0.00013972,2]
[333186225,1721927447058,-500.0,0.00013972,2]
[333186226,1721927447067,-1293.52,0.00013972,2]
[333186227,1721927447077,-500.0,0.00013972,2]
[333186228,1721927447087,-502.46,0.00013972,2]
[333186229,1721927447096,-500.0,0.00013972,2]
[333186230,1721927447105,-500.0,0.00013972,2]
[333186231,1721927447115,-1324.87,0.00013972,2]
[333186232,1721927447125,-500.0,0.00013972,2]
[333186233,1721927447135,-500.0,0.00013972,2]
[333186234,1721927447145,-500.0,0.00013972,2]
[333186235,1721927447155,-532.21,0.00013972,2]
[333186236,1721927447164,-500.0,0.00013972,2]
[333186237,1721927447174,-500.0,0.00013972,2]
[333186238,1721927447184,-260.99163188,0.00013972,2]
[333186239,1721927447434,-239.00836812,0.00013972,2]
[333186240,1721927447445,-789.11,0.00013972,2]
[333186241,1721927447457,-306.08461225,0.00013972,2]
[333186242,1721927447467,-500.0,0.00013972,2]
[333186243,1721927447477,-500.0,0.00013972,2]
[333186244,1721927447488,-1208.93,0.00013972,2]
[333186245,1721927447499,-838.77,0.00013972,2]
[333186246,1721927447510,-648.49,0.00013972,2]
[333186247,1721927447520,-500.0,0.00013972,2]
[333186248,1721927447530,-922.61,0.00013972,2]
[333186249,1721927447540,-500.0,0.00013972,2]
[333186250,1721927447550,-1432.59,0.00013972,2]
[333186251,1721927447560,-500.0,0.00013972,2]
[333186252,1721927447569,-500.0,0.00013972,2]
[333186253,1721927447579,-242.61864587,0.00013972,2]
[333186254,1721927447819,-377.325,0.00013972,2]
[333186255,1721927447831,-536.95635413,0.00013972,2]
[333186256,1721927447845,-1307.94,0.00013972,2]
[333186257,1721927447854,-500.0,0.00013972,2]
[333186258,1721927447865,-151.0,0.00013972,2]
[333186259,1721927447878,-271.148204,0.00013972,2]
[333186260,1721927447887,-500.0,0.00013972,2]
[333186261,1721927447899,-962.55,0.00013972,2]
[333186262,1721927447911,-500.0,0.00013972,2]
[333186263,1721927447922,-500.0,0.00013972,2]
[333186264,1721927447932,-500.0,0.00013972,2]
[333186265,1721927447942,-1740.85,0.00013972,2]
[333186266,1721927447951,-500.0,0.00013972,2]
[333186267,1721927447962,-579.40700129,0.00013972,2]
[333186268,1721927447972,-591.87564627,0.00013972,2]
[333186269,1721927447981,-545.35,0.00013972,2]
[333186270,1721927447990,-500.0,0.00013972,2]
[333186271,1721927448001,-846.38,0.00013972,2]
[333186272,1721927448011,-500.0,0.00013972,2]
[333186273,1721927448020,-500.0,0.00013972,2]
[333186274,1721927448030,-500.0,0.00013972,2]
[333186275,1721927448040,-790.2,0.00013972,2]
[333186276,1721927448050,-500.0,0.00013972,2]
[333186277,1721927448060,-1170.24,0.00013972,2]
[333186278,1721927448070,-500.0,0.00013972,2]
[333186280,1721927448080,-540.39,0.00013972,2]
[333186282,1721927448089,-500.0,0.00013972,2]
[333186284,1721927448098,-500.0,0.00013972,2]
[333186286,1721927448108,-500.0,0.00013972,2]
[333186288,1721927448119,-286.82483,0.00013972,2]
[333186290,1721927448128,-500.0,0.00013972,2]
[333186291,1721927448138,-500.0,0.00013972,2]
[333186292,1721927448148,-500.0,0.00013972,2]
[333186293,1721927448158,-1166.48,0.00013972,2]
[333186294,1721927448168,-1120.13,0.00013972,2]
[333186295,1721927448179,-151.0,0.00013972,2]
[333186296,1721927448190,-151.0,0.00013972,2]
[333186297,1721927448201,-1238.08,0.00013972,2]
[333186298,1721927448211,-500.0,0.00013972,2]
[333186299,1721927448221,-500.0,0.00013972,2]
[333186300,1721927448230,-500.0,0.00013972,2]
[333186301,1721927448240,-539.28,0.00013972,2]
[333186302,1721927448251,-500.0,0.00013972,2]
[333186303,1721927448261,-500.0,0.00013972,2]
[333186304,1721927448270,-500.0,0.00013972,2]
[333186305,1721927448280,-500.0,0.00013972,2]
[333186306,1721927448294,-150.08755979,0.00013972,2]
[333186307,1721927448304,-533.82,0.00013972,2]
[333186308,1721927448313,-1644.74,0.00013972,2]
[333186309,1721927448322,-1121.94,0.00013972,2]
[333186310,1721927448331,-500.0,0.00013972,2]